fUSD/lending_fUSD_20240119
["ID","MTS","AMOUNT","RATE_DAILY","PERIOD"]
[312244062,1705703432656,-726.87796621,0.00021844,2]
[312244064,1705703432667,-155.0,0.00021844,2]
[312244066,1705703432677,-341.87083974,0.00021845,2]
[312244068,1705703432687,-1278.13193774,0.00021845,2]
[312244070,1705703432696,-2872.08671654,0.00021846,2]
[312244072,1705703432707,-100000.0,0.00021846,2]
[312244074,1705703432717,-250.0,0.00021918,2]
[312244076,1705703432726,-213.58643392,0.00021944,2]
[312244078,1705703432735,-399.61313833,0.00021944,2]
[312244080,1705703432745,-1929.84803143,0.00021944,2]
[312244081,1705703432755,-24332.10257658,0.00021944,2]
[312244082,1705703432764,-3473.29686981,0.00021944,2]
[312244083,1705703432773,-1806.37813333,0.00021944,2]
[312244084,1705703432783,-475.10229422,0.00021944,2]
[312244085,1705703432792,-386.76750307,0.00021944,2]
[312244086,1705703432802,-163.94799858,0.00021944,2]
[312244087,1705703432812,-8519.24305335,0.00021944,2]
[312244088,1705703432821,-222.35781449,0.00021944,2]
[312244089,1705703432831,-364.63482408,0.00021944,2]
[312244090,1705703432840,-1349.42389442,0.00021944,2]
[312244091,1705703432849,-200.0,0.00021944,2]
[312244092,1705703432860,-179.0,0.00021944,2]
[312244093,1705703432869,-500.0,0.00021945,2]
[312244094,1705703432879,-609.85464141,0.00021946,2]
[312244095,1705703432888,-154716.41767012,0.00021946,2]
[312244096,1705703432897,-1000.0,0.00021946,2]
[312244097,1705703432906,-8005.6872,0.00021946,2]
[312244098,1705703432915,-250.0,0.00022,2]
[312244099,1705703432925,-250.0,0.00022,2]
[312244100,1705703432934,-1250.0,0.00022,3]
[312244101,1705703432943,-155.21,0.00022009,2]
[312244102,1705703432952,-154.92,0.00022015,2]
[312244103,1705703432961,-154.47,0.00022054,2]
[312244104,1705703432970,-154.92,0.00022224,2]
[312244105,1705703432980,-154.47,0.00022287,2]
[312244106,1705703432989,-158.65,0.00022314,2]
[312244107,1705703432998,-155.11,0.00022348,2]
[312244108,1705703433009,-904.74,0.00022426,2]
[312244109,1705703433018,-154.92,0.00022434,2]
[312244110,1705703433028,-500.0,0.00022493,2]
[312244111,1705703433038,-12242.60596385,0.000225,2]
[312244112,1705703433047,-250.0,0.000225,2]
[312244113,1705703433056,-250.0,0.000225,2]
[312244114,1705703433065,-2872.0867165,0.00022507,2]
[312244115,1705703433074,-210.0,0.00022515,2]
[312244116,1705703433083,-154.47,0.0002252,2]
[312244117,1705703433093,-156.31,0.00022538,2]
[312244118,1705703433102,-1687.99,0.00022569,2]
[312244119,1705703433111,-1688.0,0.00022569,2]
[312244120,1705703433121,-431.83,0.00022581,2]
[312244121,1705703433130,-180.0,0.00022603,2]
[312244122,1705703433140,-154.92,0.00022644,2]
[312244123,1705703433150,-155.0,0.00022701,2]
[312244124,1705703433159,-10000.0,0.0002274,2]
[312244125,1705703433168,-154.47,0.00022753,2]
[312244126,1705703433177,-800.0,0.00022796,2]
[312244127,1705703433186,-200.0,0.00022806,2]
[312244128,1705703433195,-800.0,0.00022806,2]
[312244129,1705703433204,-200.0,0.00022815,2]
[312244130,1705703433214,-800.0,0.00022815,2]
[312244131,1705703433223,-154.92,0.00022853,2]
[312244132,1705703433232,-158.65,0.00022883,2]
[312244133,1705703433241,-260.15368191,0.00022898,2]
[312244134,1705703433261,-151.012,0.00022898,3]
[312244135,1705703433272,-151.012,0.00022898,3]
[312244136,1705703433281,-151.012,0.00022898,3]
[312244137,1705703433291,-151.012,0.00022898,3]
[312244138,1705703433301,-151.012,0.00022898,3]
[312244139,1705703433310,-151.012,0.00022898,3]
[312244140,1705703433320,-151.012,0.00022898,3]
[312244141,1705703433330,-151.012,0.00022898,3]
[312244142,1705703433339,-151.012,0.00022898,3]
[312244143,1705703433348,-151.012,0.00022898,3]
[312244144,1705703433358,-151.012,0.00022898,3]
[312244145,1705703433368,-151.012,0.00022898,3]
[312244146,1705703433378,-151.012,0.00022898,3]
[312244147,1705703433388,-151.012,0.00022898,3]
[312244148,1705703433398,-151.012,0.00022898,3]
[312244149,1705703433407,-151.012,0.00022898,3]
[312244150,1705703433416,-151.012,0.00022898,3]
[312244151,1705703433426,-151.012,0.00022898,3]
[312244152,1705703433435,-151.012,0.00022898,3]
[312244153,1705703433445,-151.012,0.00022898,3]
[312244154,1705703433455,-151.012,0.00022898,3]
[312244155,1705703433464,-151.012,0.00022898,3]
[312244156,1705703433474,-151.012,0.00022898,3]
[312244157,1705703433484,-151.012,0.00022898,3]
[312244158,1705703433782,-151.012,0.00022898,3]
[312244159,1705703433792,-151.012,0.00022898,3]
[312244160,1705703433801,-151.012,0.00022898,3]
[312244161,1705703433811,-151.012,0.00022898,3]
[312244162,1705703433820,-151.012,0.00022898,3]
[312244163,1705703433835,-151.012,0.00022898,3]
[312244164,1705703433845,-151.012,0.00022898,3]
[312244165,1705703433854,-151.012,0.00022898,3]
[312244166,1705703433864,-151.012,0.00022898,3]
[312244167,1705703433873,-151.012,0.00022898,3]
[312244168,1705703433882,-151.012,0.00022898,3]
[312244169,1705703433892,-151.012,0.00022898,3]
[312244170,1705703433901,-151.012,0.00022898,3]
[312244171,1705703433910,-151.012,0.00022898,3]
[312244172,1705703433919,-151.012,0.00022898,3]
[312244173,1705703433929,-151.012,0.00022898,3]
[312244174,1705703433938,-151.012,0.00022898,3]
[312244175,1705703433947,-151.012,0.00022898,3]
[312244176,1705703433957,-151.012,0.00022898,3]
[312244177,1705703433966,-151.012,0.00022898,3]
[312244178,1705703433975,-151.012,0.00022898,3]
[312244179,1705703433985,-151.012,0.00022898,3]
[312244180,1705703433994,-151.012,0.00022898,3]
[312244181,1705703434003,-151.012,0.00022898,3]
[312244182,1705703434013,-203.012,0.00022898,3]
[312244183,1705703434022,-186.87447347,0.000229,2]
[312244184,1705703434031,-174.15786166,0.000229,2]
[312244185,1705703434041,-317.257103,0.000229,2]
[312244186,1705703434050,-343.5752511,0.000229,2]
[312244187,1705703434060,-21008.538,0.000229,2]
[312244188,1705703434069,-201609.14,0.000229,2]
[312244189,1705703434078,-1231.98586178,0.000229,2]
[312244190,1705703434087,-152.29625497,0.000229,2]
[312244191,1705703434097,-296.47609401,0.000229,2]
[312244192,1705703434106,-5753.29392324,0.000229,2]
[312244193,1705703434115,-4105.39986096,0.000229,2]
[312244194,1705703434125,-441.92,0.00022923,2]
[312244195,1705703434134,-154.47,0.00022986,2]
[312244196,1705703434143,-203.0,0.00022991,5]
[312244197,1705703434152,-458.93953423,0.00022998,2]
[312244198,1705703434162,-692.33625139,0.00022998,2]
[312244199,1705703434171,-155.58466207,0.00022998,2]
[312244200,1705703434181,-3296.87897521,0.00022999,2]
[312244201,1705703434191,-151.0,0.00023,7]
[312244202,1705703434200,-151.0,0.00023,7]
[312244203,1705703434209,-151.0,0.00023,7]
[312244204,1705703434219,-151.0,0.00023,7]
[312244205,1705703434228,-151.428382,0.00023,7]
[312244206,1705703434237,-151.0,0.00023,7]
[312244207,1705703434246,-1080.0,0.00023,2]
[312244208,1705703434256,-151.0,0.00023,7]
[312244209,1705703434265,-151.0,0.00023,7]
[312244210,1705703434275,-151.0,0.00023,7]
[312244211,1705703434284,-1024.650753,0.00023,7]
[312244212,1705703434294,-1024.650753,0.00023,7]
[312244213,1705703434304,-151.0,0.00023,7]
[312244214,1705703434313,-151.0,0.00023,7]
[312244215,1705703434323,-151.0,0.00023,7]
[312244216,1705703434331,-151.0,0.00023,7]
[312244217,1705703434341,-151.0,0.00023,7]
[312244218,1705703434350,-151.0,0.00023,7]
[312244219,1705703434360,-271.274775,0.00023,7]
[312244220,1705703434369,-271.274775,0.00023,7]
[312244221,1705703434379,-151.0,0.00023,7]
[312244222,1705703434389,-151.0,0.00023,7]
[312244223,1705703434398,-151.0,0.00023,7]
[312244224,1705703434408,-151.0,0.00023,7]
[312244225,1705703434417,-151.0,0.00023,7]
[312244226,1705703434426,-151.0,0.00023,7]
[312244227,1705703434436,-151.0,0.00023,7]
[312244228,1705703434445,-198.108494,0.00023,7]
[312244229,1705703434454,-198.108494,0.00023,7]
[312244230,1705703434464,-151.0,0.00023,7]
[312244231,1705703434473,-490.757942,0.00023,7]
[312244232,1705703434486,-490.757942,0.00023,7]
[312244233,1705703434496,-286.41363,0.00023,7]
[312244234,1705703434506,-277986.01628084,0.00023,3]
[312244235,1705703434516,-144047.02979891,0.00023,2]
[312244246,1705703437916,-785.2873475,0.000229,2]
[312244251,1705703438186,-2153.80936827,0.000229,2]
[312244252,1705703438196,-1441626.83459537,0.00023,2]
[312244253,1705703438206,-1008.11171313,0.00023,20]
[312244254,1705703438215,-694201.73583449,0.00023,2]
[312244284,1705703440472,-255.07607633,0.00022999,2]
[312244285,1705703442872,-1248.42830021,0.00022999,2]
[312244286,1705703443090,-835.04991627,0.00022999,2]
[312244289,1705703445897,-958.3246824,0.00022999,2]
[312244290,1705703445906,-3296.87897521,0.00022999,2]
[312244291,1705703445916,-973.0,0.00023,2]
[312244292,1705703445925,-286.0558295,0.00023,2]
[312244293,1705703446492,-4165.1,0.00023,2]
[312244294,1705703446504,-663.74904689,0.00023,2]
[312244375,1705703973999,205.0,0.00018524,2]
[312244531,1705704576686,442.56,0.0001937,2]
[312244585,1705704632248,-205.0,0.00020116,2]
[312244586,1705704632258,-156.87949165,0.00020599,2]
[312244587,1705704632268,-65.06804435,0.00020698,2]
[312244588,1705704632279,-1822.55386286,0.00020698,2]
[312244590,1705704632290,-323.26186872,0.00020698,2]
[312244592,1705704632302,-280.378098,0.00020698,2]
[312244593,1705704632313,-400.08481297,0.00020698,2]
[312244594,1705704632327,-3123.19319229,0.00020698,2]
[312244614,1705704632572,-762.26590053,0.00020698,2]
[312244616,1705704632582,-873.28210128,0.00020699,2]
[312244618,1705704632591,-156.87949156,0.00020814,2]
[312244620,1705704632601,-156.87949156,0.0002103,2]
[312244622,1705704632610,-150.0,0.00021205,2]
[312244624,1705704632619,-156.87949156,0.00021245,2]
[312244626,1705704632629,-870.34,0.00021281,2]
[312244628,1705704632638,-227.04596113,0.00021282,2]
[312244631,1705704632654,-161.20403887,0.00021282,2]
[312244633,1705704632663,-495.01198343,0.00021292,2]
[312244636,1705704632679,-4.98801657,0.00021292,2]
[312244638,1705704632688,-499.99,0.00021292,2]
[312244640,1705704632697,-265.16,0.00021379,2]
[312244642,1705704632706,-156.87949156,0.00021461,2]
[312244644,1705704632716,-30.42955302,0.000215,2]
[312244646,1705704632728,-219.57044698,0.000215,2]
[312244648,1705704632736,-310.69496769,0.00021634,2]
[312244651,1705704632753,-131.86503231,0.00021634,2]
[312244653,1705704632763,-156.87949156,0.00021676,2]
[312244655,1705704632771,-3000.0,0.00021744,2]
[312244657,1705704632781,-157.86,0.00021766,2]
[312244659,1705704632792,-1423.77,0.00021781,2]
[312244661,1705704632801,-164.0104164,0.00021842,2]
[312244663,1705704632810,-380.58,0.00021842,2]
[312244665,1705704632820,-2925.60908468,0.00021844,2]
[312244667,1705704632831,-724.46528042,0.00021844,2]
[312244679,1705704632951,-9674.97436087,0.00021844,2]
[312244680,1705704632962,-255.97559429,0.00021844,2]
[312244681,1705704632974,-1110.80224,0.00021844,2]
[312244715,1705704638078,-3560.347499,0.00021844,2]
[312244716,1705704638304,-1588.43857689,0.00021844,2]
[312244717,1705704638315,-898.15354925,0.00021844,2]
[312244718,1705704638327,-367.06866657,0.00021844,2]
[312244719,1705704638411,-104374.63484803,0.00021844,2]
[312244720,1705704638421,-156.87949156,0.00021892,2]
[312244721,1705704638432,-250.0,0.00021918,2]
[312244722,1705704638443,-250.0,0.00022,2]
[312244723,1705704638454,-153.3,0.00022067,2]
[312244724,1705704638463,-734.84,0.00022067,2]
[312244725,1705704638474,-381.0,0.00022094,2]
[312244726,1705704638483,-156.87949156,0.00022107,2]
[312244727,1705704638492,-153.3,0.00022233,2]
[312244728,1705704638503,-870.34,0.00022259,2]
[312244729,1705704638513,-156.87949156,0.00022323,2]
[312244730,1705704638522,-153.3,0.00022398,2]
[312244731,1705704638532,-12242.60596385,0.000225,2]
[312244732,1705704638541,-250.0,0.000225,2]
[312244733,1705704638551,-151.02717831,0.000225,2]
[312244734,1705704638560,-250.0,0.000225,2]
[312244735,1705704638570,-156.87949156,0.00022538,2]
[312244736,1705704638581,-153.3,0.00022564,2]
[312244737,1705704638590,-155.0,0.00022701,2]
[312244739,1705704638602,-153.3,0.00022729,2]
[312244742,1705704638612,-156.87949156,0.00022754,2]
[312244744,1705704638622,-3904.03294111,0.00022768,3]
[312244746,1705704638632,-222.29996028,0.00022768,4]
[312244747,1705704638641,-250.0,0.00022774,2]
[312244750,1705704638651,-205.0,0.00022775,5]
[312244752,1705704638661,-157.86,0.0002279,2]
[312244755,1705704638674,-200.0,0.00022816,2]
[312244758,1705704638684,-800.0,0.00022816,2]
[312244761,1705704638694,-153.3,0.00022895,2]
[312244764,1705704638704,-9657.21655381,0.000229,2]
[312244767,1705704638714,-165.92298533,0.000229,2]
[312244770,1705704638724,-1237.0405,0.000229,2]
[312244772,1705704638733,-186.87447348,0.000229,2]
[312244774,1705704638742,-2154.06503741,0.000229,2]
[312244776,1705704638752,-152.29625497,0.000229,2]
[312244778,1705704638761,-156.87949156,0.00022969,2]
[312244780,1705704638771,-238.17470059,0.00022998,2]
[312244782,1705704638781,-171.72993074,0.00022998,2]
[312244784,1705704638791,-29855.75081581,0.00022998,2]
[312244786,1705704638800,-9002.253702,0.00022999,2]
[312244788,1705704638810,-159.68210425,0.00022999,2]
[312244790,1705704638819,-3296.87897521,0.00022999,2]
[312244792,1705704638828,-562.75,0.00022999,2]
[312244794,1705704638838,-875.0,0.00023,2]
[312244796,1705704638847,-1170660.92005308,0.00023,2]
[312244798,1705704638856,-30000.0,0.00023,2]
[312244800,1705704638866,-1000.0,0.00023,2]
[312244802,1705704638876,-1008.11171313,0.00023,20]
[312244804,1705704638885,-35395.0,0.00023,2]
[312244806,1705704638894,-250.0,0.00023,2]
[312244808,1705704638904,-1500.0,0.00023,2]
[312244810,1705704638914,-224.04,0.00023,2]
[312244812,1705704638923,-746.7390728,0.00023016,2]
[312244814,1705704638933,-357.35832948,0.00023048,2]
[312244816,1705704638942,-153.3,0.0002306,2]
[312244818,1705704638952,-154.92,0.00023063,2]
[312244820,1705704638961,-312.08,0.00023102,2]
[312244822,1705704638971,-156.87949156,0.00023185,2]
[312244824,1705704638980,-154.47,0.00023219,2]
[312244826,1705704638989,-153.3,0.00023226,2]
[312244829,1705704639002,-312.08,0.00023236,2]
[312244831,1705704639012,-870.34,0.00023238,2]
[312244833,1705704639028,-1495.13833716,0.00023255,2]
[312244835,1705704639037,-154.92,0.00023273,2]
[312244837,1705704639049,-5006.0,0.00023288,4]
[312244839,1705704639060,-155.21,0.00023308,2]
[312244841,1705704639070,-312.08,0.0002337,2]
[312244843,1705704639080,-153.3,0.00023391,2]
[312244845,1705704639089,-1000.0,0.000234,2]
[312244847,1705704639099,-156.87949156,0.000234,2]
[312244849,1705704639109,-211.50473534,0.000234,2]
[312244851,1705704639120,-2736.93324064,0.000234,2]
[312244853,1705704639129,-197.65072934,0.000234,2]
[312244855,1705704639139,-180.0,0.0002341,2]
[312244857,1705704639149,-154.47,0.00023452,2]
[312244859,1705704639158,-158.65,0.00023452,2]
[312244861,1705704639168,-154.92,0.00023482,2]
[312244862,1705704639179,-845.5622475,0.00023484,2]
[312244863,1705704639189,-150.0,0.00023499,2]
[312244864,1705704639199,-150.0,0.00023499,2]
[312244865,1705704639209,-145443.81162361,0.000235,3]
[312244866,1705704639218,-644227.96252857,0.000235,3]
[312244867,1705704639242,-827.91845062,0.000235,3]
[312244868,1705704639253,-4607.82526999,0.000235,3]
[312244869,1705704639265,-708.79885794,0.000235,3]
[312245039,1705704640786,-183.01,0.00021802,2]
[312245041,1705704640796,-183.01,0.00022674,2]
[312245043,1705704640806,-1749.20422744,0.000235,3]
[312245136,1705704643216,-13731.4034342,0.000235,3]
[312245261,1705704646271,-498.13995167,0.00022999,2]
[312245372,1705705594293,-202.72914679,0.00019839,2]
[312245373,1705705594317,-421.91,0.0001984,2]
[312245374,1705705594342,-161.99763837,0.00020498,2]
[312245375,1705705594370,-161.99763831,0.00020698,2]
[312245376,1705705594394,-161.99763831,0.00020898,2]
[312245377,1705705594418,-2889.36793822,0.00021098,2]
[312245429,1705705691266,-400.81,0.00019518,2]
[312245430,1705705691404,-400.81,0.00021097,2]
[312245431,1705705691417,-2698.38,0.00021097,2]
[312245590,1705705832207,-6776.80577972,0.00020997,2]
[312245592,1705705832217,-2961.7308,0.00020998,2]
[312245594,1705705832226,-284.34145769,0.00021097,2]
[312245596,1705705832235,-361.28571623,0.00021097,2]
[312245598,1705705832245,-161.99763831,0.00021099,2]
[312245600,1705705832254,-161.99763831,0.00021299,2]
[312245601,1705705832264,-263.71,0.00021327,10]
[312245602,1705705832274,-906.96,0.00021356,2]
[312245603,1705705832284,-787.87,0.0002137,2]
[312245604,1705705832293,-171.33,0.00021383,2]
[312245605,1705705832303,-292.98,0.00021387,2]
[312245606,1705705832312,-2623.99,0.00021406,2]
[312245607,1705705832321,-500.0,0.00021418,2]
[312245608,1705705832332,-150.0,0.00021433,2]
[312245609,1705705832341,-205.0,0.00021434,2]
[312245610,1705705832351,-499.99,0.00021447,2]
[312245611,1705705832361,-265.44,0.00021448,2]
[312245612,1705705832370,-161.99763831,0.00021499,2]
[312245613,1705705832380,-173.29,0.00021564,2]
[312245614,1705705832390,-212.13,0.00021572,2]
[312245615,1705705832399,-265.44,0.00021584,2]
[312245616,1705705832409,-156.64,0.00021628,2]
[312245617,1705705832418,-157.86,0.00021634,2]
[312245618,1705705832428,-161.99763831,0.00021699,2]
[312245619,1705705832438,-265.44,0.00021719,2]
[312245620,1705705832448,-400.81,0.00021782,2]
[312245621,1705705832459,-173.29,0.00021789,2]
[312245622,1705705832467,-265.44,0.00021854,2]
[312245623,1705705832477,-161.99763831,0.00021899,2]
[312245624,1705705832487,-250.0,0.00021918,2]
[312245625,1705705832497,-265.44,0.0002199,2]
[312245626,1705705832506,-250.0,0.00022,2]
[312245628,1705705832519,-150.0,0.00022,2]
[312245630,1705705832528,-432.02105481,0.00022,3]
[312245632,1705705832540,-817.97894519,0.00022,3]
[312245635,1705705832550,-150.0,0.00022,2]
[312245637,1705705832558,-250.0,0.00022,2]
[312245640,1705705832568,-256.96,0.00022,2]
[312245643,1705705832577,-152.88978293,0.00022,2]
[312245646,1705705832587,-300.0,0.0002201,2]
[312245648,1705705832596,-173.29,0.00022013,2]
[312245650,1705705832606,-532.87186835,0.00022058,2]
[312245658,1705705832650,-251.82949997,0.00022058,2]
[312245660,1705705832661,-108.11485457,0.00022058,2]
[312245661,1705705832670,-161.99763831,0.00022099,2]
[312245663,1705705832678,-220.6299708,0.0002211,2]
[312245665,1705705832687,-265.44,0.00022125,2]
[312245667,1705705832696,-243.81753632,0.00022137,2]
[312245669,1705705832707,-13.14246368,0.00022137,2]
[312245671,1705705832716,-173.29,0.00022238,2]
[312245673,1705705832725,-265.44,0.00022261,2]
[312245674,1705705832734,-250.0,0.00022274,2]
[312245676,1705705832742,-256.96,0.00022274,2]
[312245678,1705705832751,-161.99763831,0.000223,2]
[312245679,1705705832760,-906.96,0.00022334,2]
[312245680,1705705832769,-265.44,0.00022396,2]
[312245682,1705705832777,-256.96,0.00022411,2]
[312245684,1705705832787,-173.29,0.00022463,2]
[312245686,1705705832796,-6925.40269882,0.0002249,5]
[312245688,1705705832805,-1656.64058921,0.00022499,2]
[312245690,1705705832814,-161.99763831,0.000225,2]
[312245692,1705705832823,-362.36700236,0.000225,2]
[312245694,1705705832832,-3451.47952995,0.000225,2]
[312245696,1705705832843,-1251.47,0.000225,2]
[312245698,1705705832855,-1516.1884985,0.000225,2]
[312245718,1705705838260,-6023.4679354,0.000225,2]
[312245719,1705705838270,-250.0,0.000225,2]
[312245720,1705705838279,-335.0,0.00022523,2]
[312245721,1705705838288,-265.44,0.00022532,2]
[312245722,1705705838297,-1317.33951162,0.00022548,3]
[312245723,1705705838310,-357.35832948,0.00022548,2]
[312245724,1705705838320,-286.5497544,0.00022548,2]
[312245725,1705705838330,-314.2624125,0.00022548,2]
[312245726,1705705838339,-156.64,0.00022645,2]
[312245727,1705705838349,-265.44,0.00022667,2]
[312245728,1705705838358,-173.29,0.00022688,2]
[312245729,1705705838368,-161.99763831,0.000227,2]
[312245730,1705705838377,-155.0,0.00022701,2]
[312245731,1705705838387,-222.29996028,0.00022747,4]
[312245732,1705705838396,-262.5,0.00022748,2]
[312245733,1705705838406,-2475.29256209,0.00022793,2]
[312245734,1705705838415,-265.44,0.00022803,2]
[312245735,1705705838425,-7504.75046704,0.00022832,2]
[312245736,1705705838435,-500.0,0.00022857,2]
[312245737,1705705838447,-188.59454842,0.00022879,2]
[312245738,1705705838458,-2413.4069668,0.0002288,2]
[312245739,1705705838468,-8852.44850765,0.00022881,2]
[312245740,1705705838477,-186.87447348,0.00022881,2]
[312245741,1705705838487,-717.93645609,0.00022881,2]
[312245742,1705705838496,-200.98286647,0.00022884,2]
[312245743,1705705838506,-717.93645609,0.0002289,2]
[312245744,1705705838516,-500.0,0.00022899,2]
[312245745,1705705838526,-7443.71539871,0.00022899,2]
[312245764,1705705838822,-24069.9999999,0.00022899,2]
[312245767,1705705838844,-2347.59359163,0.00022899,2]
[312245771,1705705838856,-1058.031975,0.00022899,2]
[312245774,1705705838867,-2263.60897917,0.00022899,2]
[312245779,1705705838892,-15105.85745559,0.00022899,2]
[312245783,1705705838901,-1237.0405,0.00022899,2]
[312245787,1705705838913,-717.93645609,0.00022899,2]
[312245789,1705705838923,-161.99763831,0.000229,2]
[312245791,1705705838932,-152.29625497,0.000229,2]
[312245793,1705705838942,-188.59454841,0.000229,2]
[312245795,1705705838951,-821.32390786,0.000229,2]
[312245797,1705705838960,-2143.81259342,0.000229,2]
[312245799,1705705838972,-1691.71668874,0.000229,2]
[312245801,1705705838982,-211.50473534,0.000229,2]
[312245803,1705705838991,-2736.93324064,0.000229,2]
[312245805,1705705839000,-158.57,0.00022936,2]
[312245807,1705705839009,-265.44,0.00022938,2]
[312245809,1705705839019,-500.0,0.0002294,2]
[312245811,1705705839028,-263.49556138,0.00022969,2]
[312245813,1705705839037,-2714.53893261,0.00022977,3]
[312245815,1705705839047,-106.60842228,0.00022977,2]
[312245818,1705705839063,-131.56627831,0.00022977,2]
[312245820,1705705839073,-171.72993074,0.00022977,2]
[312245821,1705705839082,-948.45379095,0.00022977,2]
[312245824,1705705839101,-2190.92784399,0.00022977,2]
[312245826,1705705839112,-1008.0,0.00022977,2]
[312245828,1705705839124,-25708.36918087,0.00022977,2]
[312245830,1705705839133,-159.52452129,0.00022977,2]
[312245832,1705705839142,-687.257,0.00022977,2]
[312245834,1705705839151,-155.0,0.00022977,2]
[312245836,1705705839161,-9002.253702,0.00022978,2]
[312245838,1705705839170,-308.22134209,0.00022978,10]
[312245840,1705705839178,-308.22134209,0.00022978,10]
[312245842,1705705839188,-308.22134209,0.00022978,10]
[312245844,1705705839197,-308.22134209,0.00022978,10]
[312245846,1705705839207,-500.0,0.00022978,2]
[312245847,1705705839217,-492331.23405909,0.00022979,2]
[312245849,1705705839226,-308.22134209,0.00022979,10]
[312245851,1705705839235,-308.22134209,0.00022979,10]
[312245853,1705705839244,-308.22134209,0.00022979,10]
[312245855,1705705839254,-444438.7231534,0.0002298,2]
[312245857,1705705839263,-500.0,0.00022981,2]
[312245859,1705705839272,-308.22134209,0.00022988,10]
[312245861,1705705839280,-11171.10468059,0.00022989,2]
[312245863,1705705839290,-308.22134209,0.00022998,10]
[312245865,1705705839298,-1656.6405892,0.00022999,2]
[312245867,1705705839307,-331263.63089998,0.00022999,2]
[312245869,1705705839317,-49936.30857824,0.00022999,2]
[312245871,1705705839326,-150.0,0.00022999,2]
[312245873,1705705839335,-150.0,0.00022999,2]
[312245875,1705705839344,-150.0,0.00022999,2]
[312245876,1705705839354,-150.0,0.00022999,2]
[312245879,1705705839363,-524664.01548338,0.00022999,3]
[312245881,1705705839373,-1054882.9210689,0.00023,2]
[312245883,1705705839384,-22745.0,0.00023,2]
[312245995,1705705840781,-21315.90292621,0.00023,2]
[312245996,1705705840793,-86000.0,0.00023,2]
[312245997,1705705840891,-935.64577646,0.00023,2]
[312245998,1705705840949,-2161.75108759,0.00023,2]
[312245999,1705705840960,-1290.21,0.00023,2]
[312246000,1705705840975,-2921.307775,0.00023,2]
[312246001,1705705840987,-286.34555566,0.00023,2]
[312246002,1705705841513,-5437.69,0.00023,2]
[312246003,1705705841527,-1276.8556622,0.00023,2]
[312246004,1705705841542,-463.38494082,0.00023,2]
[312246005,1705705841555,-275.45335838,0.00023,2]
[312246006,1705705841628,-573.34674384,0.00023,2]
[312246007,1705705841639,-1075.97623632,0.00023,2]
[312246008,1705705841651,-504.29789126,0.00023,2]
[312246019,1705705843336,-283.80112008,0.00021097,2]
[312246020,1705705843345,-26351.1696071,0.00023,2]
[312246021,1705705843358,-4173.3,0.00023,2]
[312246022,1705705843371,-2160.0,0.00023,2]
[312246023,1705705843383,-48863.422,0.00023,2]
[312246024,1705705843396,-339674.97702915,0.00023,2]
[312246025,1705705843408,-677.57196444,0.00023,2]
[312246026,1705705843420,-660.19,0.00023,2]
[312246027,1705705843432,-1000.05245018,0.00023,2]
[312246028,1705705843453,-1034.02164183,0.00023,2]
[312246029,1705705843468,-260.2328434,0.00023,2]
[312246030,1705705843480,-455.488698,0.00023,2]
[312246031,1705705843507,-562.92330503,0.00023,2]
[312246032,1705705843524,-9026.69609136,0.00023,2]
[312246033,1705705843542,-8196.65999952,0.00023,2]
[312246034,1705705843555,-701.666667,0.00023,2]
[312246035,1705705843567,-493.84803407,0.00023,2]